bitfinex/quotes_SOLUSD_20220113
["timestamp","ask_amount","ask_price","bid_price","bid_amount"]
[1642104182640,11.42544819,146.83,146.67,494.20470238]
[1642104182838,19.3254434,146.83,146.67,494.20470238]
[1642104183139,29.93783067,146.83,146.67,494.20470238]
[1642104183338,29.93783067,146.83,146.67,16.73818785]
[1642104183539,30.19783067,146.83,146.67,16.73818785]
[1642104183738,10.2231,146.8,146.65,23.9168]
[1642104183940,10.886,146.79,146.58,8.225]
[1642104184138,10.886,146.79,146.58,0.065]
[1642104184340,17.71392179,146.79,146.58,0.065]
[1642104184638,67.66,146.78,146.58,0.065]
[1642104184841,35.95051094,146.79,146.58,0.065]
[1642104184842,67.66,146.76,146.58,0.065]
[1642104185037,10.2296,146.71,146.58,0.065]
[1642104185238,2.727,146.7,146.58,0.065]
[1642104185638,2.727,146.73,146.58,1.71499521]
[1642104186038,2.977,146.73,146.58,0.325]
[1642104186538,2.977,146.73,146.59,1.64999521]
[1642104186739,13.2149,146.73,146.6,27.48741185]
[1642104187037,13.4649,146.73,146.6,27.74741185]
[1642104187642,8.16,146.72,146.6,17.25921185]
[1642104187843,2.727,146.71,146.6,17.25921185]
[1642104188140,10.2327,146.66,146.6,17.25921185]
[1642104188341,2.727,146.65,146.6,17.25921185]
[1642104188540,2.977,146.65,146.6,17.25921185]
[1642104188941,2.727,146.65,146.6,17.25921185]
[1642104189165,2.728,146.69,146.6,17.25921185]
[1642104189369,8.16,146.74,146.6,17.50921185]
[1642104189661,8.16,146.74,146.61,1.64999521]
[1642104189862,2.727,146.73,146.6,17.25921185]
[1642104190066,8.727,146.73,146.6,17.25921185]
[1642104190262,12.9548,146.73,146.6,17.25921185]
[1642104190463,18.9548,146.73,146.6,17.51921185]
[1642104190969,8.16,146.72,146.6,17.25921185]
[1642104191162,70.387,146.71,146.58,0.065]
[1642104191365,10.2325,146.66,146.58,0.065]
[1642104191563,18.3155,146.66,146.58,0.065]
[1642104191761,2.728,146.65,146.58,0.065]
[1642104191964,2.978,146.65,146.58,0.065]
[1642104192565,3.238,146.65,146.58,0.065]
[1642104192786,3.238,146.65,146.58,3.97166968]
[1642104193186,13.471,146.65,146.58,3.97166968]
[1642104193792,2.728,146.67,146.59,14.88877713]
[1642104193992,2.988,146.67,146.59,14.88877713]
[1642104194193,13.2197,146.67,146.58,3.97166968]
[1642104194392,80.8797,146.67,146.58,3.97166968]
[1642104194591,80.8797,146.67,146.59,3.90666968]
[1642104194792,8.16,146.66,146.59,3.90666968]
[1642104194997,70.388,146.65,146.59,3.90666968]
[1642104195200,8.16,146.64,146.59,3.90666968]
[1642104195397,8.16,146.64,146.58,0.065]
[1642104195398,70.388,146.63,146.58,0.065]
[1642104195599,87.1342,146.63,146.58,0.065]
[1642104196195,13.4742,146.63,146.58,0.065]
[1642104196396,13.2142,146.63,146.56,3.936e-05]
[1642104196597,27.3742,146.63,146.54,3.90745938]
[1642104196798,21.3742,146.63,146.54,3.90745938]
[1642104196997,21.75038727,146.63,146.54,3.90745938]
[1642104197198,11.138,146.63,146.54,3.90745938]
[1642104197398,11.138,146.63,146.55,15.16176873]
[1642104197600,10.888,146.63,146.56,10.2314]
[1642104197998,10.888,146.63,146.49,48.25111311]
[1642104198198,1.64999521,146.62,146.49,0.03791311]
[1642104198399,10.889,146.61,146.49,0.03791311]
[1642104198598,28.96367061,146.61,146.49,0.03791311]
[1642104198798,34.1309,146.59,146.49,0.03791311]
[1642104198999,2.729,146.58,146.49,0.03791311]
[1642104199201,10.238,146.57,146.49,0.03791311]
[1642104199400,2.729,146.56,146.49,0.03791311]
[1642104199602,8.16,146.55,146.49,0.03791311]
[1642104199800,2.73,146.54,146.49,0.03791311]
[1642104199999,8.16,146.53,146.49,0.03791311]
[1642104200200,2.73,146.52,146.49,0.03791311]
[1642104200403,21.1321,146.52,146.49,0.03791311]
[1642104200601,11.14,146.52,146.43,16.679264]
[1642104200802,11.14,146.52,146.43,13.679264]
[1642104201002,8.16,146.52,146.43,23.920264]
[1642104201303,8.16,146.55,146.43,23.920264]
[1642104201501,8.16,146.55,146.44,1.64999521]
[1642104201703,8.16,146.55,146.43,13.939264]
[1642104201902,2.73,146.54,146.43,13.939264]
[1642104202200,7.347,146.54,146.43,13.679264]
[1642104202403,8.16,146.53,146.43,13.679264]
[1642104202602,2.73,146.52,146.43,9.679264]
[1642104203004,10.162,146.52,146.43,9.679264]
[1642104203405,20.404,146.52,146.43,9.679264]
[1642104203803,20.154,146.52,146.43,9.679264]
[1642104204408,22.05399521,146.52,146.51,3.2198374]
[1642104205305,21.79399521,146.52,146.51,3.2198374]
[1642104205508,9.652,146.52,146.51,3.2198374]
[1642104205706,2.73,146.52,146.51,3.2198374]
[1642104206606,2.73,146.52,146.51,6.24963743]
[1642104206810,2.73,146.52,146.51,3.2198374]
[1642104207007,9.24,146.52,146.51,3.2198374]
[1642104207909,9.24,146.52,146.51,0.0098374]
[1642104208111,9.24,146.52,146.42,2200.0]
[1642104208112,78.0,146.51,146.42,2200.0]
[1642104208309,10.891,146.5,146.42,2200.0]
[1642104208509,8.16,146.49,146.42,2200.0]
[1642104208711,2.731,146.48,146.42,2200.0]
[1642104209111,8.981,146.48,146.42,2200.0]
[1642104209308,2.731,146.48,146.43,15.20874505]
[1642104209508,8.16,146.49,146.43,15.20874505]
[1642104210110,8.16,146.49,146.43,14.70874505]
[1642104210311,18.6638,146.49,146.43,14.70874505]
[1642104210614,2.731,146.48,146.43,14.70874505]
[1642104210811,10.891,146.48,146.43,14.70874505]
[1642104211012,17.401,146.48,146.42,2200.0]
[1642104211211,67.66,146.47,146.42,2200.0]
[1642104211412,2.731,146.46,146.42,2200.0]
[1642104211810,3.241,146.46,146.42,2200.0]
[1642104212010,67.66,146.45,146.42,2200.0]
[1642104212210,2.731,146.44,146.43,6.06199999]
[1642104212412,70.901,146.45,146.43,3.02980003]
[1642104212612,0.26,146.44,146.42,2193.4278]
[1642104212818,2.731,146.43,146.42,2193.4278]
[1642104213013,19.4917,146.43,146.42,2192.9278]
[1642104213413,13.4917,146.43,146.42,2192.9278]
[1642104213619,89.3117,146.43,146.42,2191.8678]
[1642104213814,95.3117,146.43,146.42,2184.5545]
[1642104214014,95.0517,146.43,146.42,2184.5545]
[1642104214317,95.0517,146.43,146.42,1931.5434]
[1642104214514,96.37708414,146.43,146.42,1880.8075]
[1642104214721,205.40389353,146.43,146.42,1637.8832]
[1642104214918,205.08167726,146.43,146.42,1480.2735]
[1642104215120,205.08167726,146.43,146.42,1435.3229]
[1642104215319,205.08167726,146.43,146.42,1359.4059]
[1642104215518,198.27486787,146.43,146.42,1359.4059]
[1642104215919,198.02486787,146.43,146.42,1291.0353]
[1642104216120,235.23896781,146.43,146.42,1291.0353]
[1642104216420,242.3057772,146.43,146.42,1095.9797]
[1642104216619,208.41762298,146.43,146.42,972.3999]
[1642104216820,115.87339994,146.43,146.42,962.3738]
[1642104217022,11.18239994,146.43,146.42,962.3738]
[1642104217220,8.16,146.43,146.42,952.2538]
[1642104217419,34.1728,146.45,146.42,952.2538]
[1642104217621,18.4167,146.44,146.42,952.2538]
[1642104219244,24.4167,146.44,146.42,952.2538]
[1642104219544,0.0067,146.44,146.42,952.2538]
[1642104219745,6.27950632,146.52,146.42,952.2538]
[1642104219945,8.16,146.51,146.42,952.2538]
[1642104220143,18.4057,146.51,146.42,952.2538]
[1642104220545,8.16,146.51,146.42,952.2538]
[1642104221746,22.028,146.51,146.42,952.2538]
[1642104221946,67.66,146.5,146.42,952.2538]
[1642104222245,10.891,146.49,146.42,952.2538]
[1642104222446,11.151,146.49,146.42,952.2538]
[1642104222645,14.42,146.49,146.42,952.2538]
[1642104222847,8.16,146.49,146.42,952.2538]
[1642104223047,8.41,146.49,146.42,952.2538]
[1642104223646,20.30669521,146.49,146.42,952.2538]
[1642104223847,2.731,146.48,146.42,952.2538]
[1642104224049,8.16,146.47,146.42,952.2538]
[1642104224251,15.518,146.47,146.42,952.2538]
[1642104224549,22.028,146.47,146.42,952.2538]
[1642104224750,10.2486,146.46,146.42,952.2538]
[1642104224949,8.16,146.45,146.42,952.2538]
[1642104225150,3.02239994,146.44,146.43,63.03219996]
[1642104225350,0.00239994,146.44,146.43,60.0]
[1642104225553,8.16,146.47,146.43,60.0]
[1642104226155,8.16,146.47,146.44,18.75747889]
[1642104226354,8.16,146.47,146.45,3.03219996]
[1642104226556,67.66,146.46,146.45,3.03219996]
[1642104226757,67.66,146.46,146.42,952.2538]
[1642104226758,78.551,146.46,146.42,952.2538]
[1642104226957,81.82,146.46,146.42,952.2538]
[1642104227357,92.319,146.46,146.42,952.2538]
[1642104227558,92.579,146.46,146.42,952.2538]
[1642104227761,82.33,146.46,146.42,952.2538]
[1642104228960,12.9803,146.45,146.42,952.2538]
[1642104229158,8.16,146.44,146.43,6.06439993]
[1642104229359,78.551,146.44,146.43,6.06439993]
[1642104229558,79.061,146.44,146.43,42.06439993]
[1642104229758,76.33,146.44,146.43,42.06439993]
[1642104230361,76.08,146.44,146.43,42.06439993]
[1642104230758,76.08,146.44,146.43,6.06439993]
[1642104230962,90.862,146.44,146.43,6.06439993]
[1642104231562,90.862,146.44,146.42,952.2538]
[1642104231762,12.9829,146.43,146.42,952.2538]
[1642104231961,11.401,146.43,146.42,952.2538]
[1642104232361,11.401,146.43,146.42,958.31819993]
[1642104232362,78.801,146.43,146.42,958.31819993]
[1642104232562,76.07,146.43,146.42,952.2538]
[1642104233367,82.07,146.43,146.42,952.2538]
[1642104233563,82.07,146.43,146.42,955.28599997]
[1642104233764,82.33,146.43,146.42,955.28599997]
[1642104233964,76.33,146.43,146.42,955.28599997]
[1642104234865,76.08,146.43,146.42,955.28599997]
[1642104235364,75.82,146.43,146.42,955.28599997]
[1642104236370,75.82,146.43,146.42,952.2538]
[1642104236566,89.845,146.43,146.42,952.2538]
[1642104236769,90.105,146.43,146.42,952.2538]
[1642104236966,90.355,146.43,146.42,952.2538]
[1642104237666,126.18259521,146.43,146.42,793.8734]
[1642104238097,228.14259521,146.43,146.42,793.8734]
[1642104238396,228.14259521,146.43,146.42,700.17780001]
[1642104238796,228.14259521,146.43,146.42,631.80820001]
[1642104239299,228.14259521,146.43,146.42,563.42630001]
[1642104239496,228.14259521,146.43,146.42,553.16870001]
[1642104239896,226.4926,146.43,146.42,484.79120001]
[1642104240297,228.14259521,146.43,146.42,484.79120001]
[1642104240496,228.14259521,146.43,146.42,416.41410001]
[1642104240898,227.63259521,146.43,146.42,348.04020001]
[1642104241099,115.9976,146.43,146.42,348.04020001]
[1642104242097,117.64759521,146.43,146.42,279.67300001]
[1642104242297,122.93059521,146.43,146.42,269.41560001]
[1642104242500,122.93059521,146.43,146.42,201.04210001]
[1642104243099,123.44059521,146.43,146.42,132.17410001]
[1642104243400,118.15759521,146.43,146.42,132.17410001]
[1642104243599,118.15759521,146.43,146.42,33.43940001]
[1642104243804,117.89759521,146.43,146.42,33.43940001]
[1642104244000,117.89759521,146.43,146.4,0.02]
[1642104244400,10.59937166,146.42,146.4,0.02]
[1642104244600,166.12,146.41,146.35,0.07962902]
[1642104244804,3.14788777,146.23,146.2,73.1188]
[1642104245001,3.14788777,146.23,146.12,94.28498479]
[1642104245002,8.16,146.25,146.21,6.06439993]
[1642104245201,104.695,146.33,146.13,74.4095]
[1642104245402,10.2599,146.29,146.13,74.4095]
[1642104245702,8.16,146.28,146.13,74.4095]
[1642104245900,8.16,146.28,146.13,74.08056231]
[1642104246103,14.42,146.28,146.13,74.08056231]
[1642104246301,104.695,146.36,146.15,86.0]
[1642104246501,8.16,146.35,146.15,86.0]
[1642104246807,8.16,146.35,146.15,101.80999521]
[1642104247001,14.16,146.35,146.15,102.05999521]
[1642104247201,14.16,146.35,146.16,24.0488]
[1642104247401,14.16,146.35,146.17,15.67592044]
[1642104247601,14.16,146.35,146.17,21.92592044]
[1642104247800,8.16,146.35,146.18,48.021]
[1642104248003,8.16,146.35,146.18,55.92099521]
[1642104248202,8.16,146.35,146.18,82.4572]
[1642104248203,14.16,146.35,146.18,82.4572]
[1642104248400,15.80999521,146.35,146.18,48.021]
[1642104248601,10.2584,146.31,146.18,48.021]
[1642104249001,8.16,146.32,146.18,48.021]
[1642104249201,8.16,146.32,146.18,58.2793]
[1642104249405,2.735,146.37,146.19,1.64999521]
[1642104249606,8.16,146.37,146.21,18.38272664]
[1642104250002,67.66,146.36,146.21,24.64272664]
[1642104250203,8.16,146.37,146.25,10.2537]
[1642104250603,8.16,146.37,146.25,10.5137]
[1642104251004,8.16,146.37,146.25,10.7637]
[1642104251203,8.16,146.41,146.25,18.9237]
[1642104251503,14.16,146.41,146.26,18.98279172]
[1642104251703,8.16,146.41,146.26,24.98279172]
[1642104251906,10.893,146.45,146.27,8.16]
[1642104252104,10.893,146.45,146.27,39.45819521]
[1642104252906,10.893,146.45,146.36,10.2454]
[1642104253104,2.733,146.45,146.36,10.5054]
[1642104253304,2.732,146.47,146.36,10.5054]
[1642104253505,8.16,146.52,146.36,16.7554]
[1642104253708,2.731,146.51,146.37,8.16]
[1642104253904,2.731,146.53,146.38,62.66457571]
[1642104254206,8.16,146.56,146.44,10.24]
[1642104254207,2.731,146.55,146.44,10.24]
[1642104254508,2.731,146.55,146.44,10.75]
[1642104254704,8.16,146.58,146.44,10.75]
[1642104254705,2.73,146.57,146.44,10.75]
[1642104254907,2.73,146.57,146.44,10.24]
[1642104255107,2.73,146.57,146.45,17.88297439]
[1642104255307,9.80999521,146.56,146.45,17.88297439]
[1642104255508,2.73,146.55,146.45,17.88297439]
[1642104255907,2.99,146.55,146.45,17.88297439]
[1642104256307,2.73,146.55,146.45,28.37287439]
[1642104256509,93.4,146.58,146.45,28.63287439]
[1642104256809,93.4,146.58,146.45,36.79287439]
[1642104257012,2.73,146.61,146.45,42.79287439]
[1642104257211,2.729,146.63,146.45,42.79287439]
[1642104257410,2.729,146.63,146.45,42.86287439]
[1642104257612,2.729,146.66,146.45,44.5128696]
[1642104257811,2.729,146.66,146.56,10.2283]
[1642104258011,2.728,146.68,146.56,10.4883]
[1642104258212,2.728,146.68,146.56,10.7383]
[1642104258613,2.728,146.68,146.57,16.29455319]
[1642104259012,2.728,146.71,146.57,30.71455319]
[1642104259212,2.728,146.71,146.57,24.71455319]
[1642104259414,2.728,146.71,146.57,30.71455319]
[1642104259814,8.16,146.7,146.57,16.29455319]
[1642104260014,2.727,146.69,146.57,16.29455319]
[1642104260216,8.16,146.68,146.57,16.29455319]
[1642104260420,2.728,146.67,146.57,16.29455319]
[1642104260617,8.16,146.66,146.57,16.29455319]
[1642104260817,2.728,146.65,146.57,16.29455319]
[1642104261019,2.978,146.65,146.57,16.29455319]
[1642104261221,19.586,146.65,146.57,16.29455319]
[1642104262222,21.3706,146.65,146.57,16.29455319]
[1642104262423,11.138,146.65,146.57,16.29455319]
[1642104262620,2.728,146.65,146.57,16.54455319]
[1642104262820,2.728,146.67,146.57,16.29455319]
[1642104263019,8.16,146.66,146.57,16.29455319]
[1642104263420,2.728,146.65,146.57,16.29455319]
[1642104263821,2.988,146.65,146.57,16.29455319]
[1642104264053,19.263,146.65,146.57,16.29455319]
[1642104264453,25.263,146.65,146.57,16.29455319]
[1642104265151,35.4959,146.65,146.57,16.29455319]
[1642104265350,353.805085,146.65,146.57,16.29455319]
[1642104265751,347.405085,146.65,146.57,16.29455319]
[1642104266551,339.540085,146.65,146.57,16.29455319]
[1642104267256,339.030085,146.65,146.57,16.29455319]
[1642104267456,320.637185,146.65,146.57,16.55455319]
[1642104267656,318.309185,146.65,146.57,16.55455319]
[1642104268359,316.309185,146.65,146.57,16.55455319]
[1642104268556,314.699185,146.65,146.57,27.03505319]
[1642104268955,282.699185,146.65,146.57,27.03505319]
[1642104269154,2.728,146.7,146.57,27.03505319]
[1642104269354,2.727,146.75,146.57,41.19505319]
[1642104269555,12.9526,146.75,146.57,42.8450484]
[1642104270057,12.9526,146.75,146.57,41.19505319]
[1642104270255,2.727,146.75,146.57,42.8450484]
[1642104271557,6.48775907,146.8,146.57,42.8450484]
[1642104271558,2.727,146.77,146.57,42.8450484]
[1642104271758,2.727,146.79,146.68,10.2223]
[1642104271959,8.727,146.79,146.68,10.4823]
[1642104272156,2.727,146.79,146.68,10.4823]
[1642104272356,8.727,146.79,146.69,18.2276088]
[1642104272561,8.727,146.79,146.69,18.4876088]
[1642104272856,19.1998,146.79,146.69,18.4876088]
[1642104273057,19.0998,146.79,146.69,18.4876088]
[1642104273258,8.16,146.78,146.69,18.2276088]
[1642104273461,2.726,146.77,146.69,18.2276088]
[1642104273658,8.16,146.76,146.6,45.1882]
[1642104273859,10.2264,146.74,146.6,51.1882]
[1642104274058,2.727,146.73,146.6,51.1882]
[1642104274459,2.737,146.73,146.6,51.1882]
[1642104274659,2.477,146.73,146.61,13.76216857]
[1642104274864,12.4538,146.73,146.61,23.98996857]
[1642104275065,12.4538,146.73,146.61,29.98996857]
[1642104275260,8.16,146.72,146.61,13.76216857]
[1642104275464,2.727,146.71,146.61,13.76216857]
[1642104275660,34.1093,146.68,146.61,13.76216857]
[1642104275861,2.727,146.67,146.61,13.76216857]
[1642104276259,2.977,146.67,146.61,13.76216857]
[1642104277260,10.2328,146.66,146.61,13.76216857]
[1642104277460,2.727,146.65,146.61,13.76216857]
[1642104277664,2.727,146.66,146.61,13.76216857]
[1642104278061,2.727,146.67,146.61,13.76216857]
[1642104278561,12.958,146.67,146.61,14.02216857]
[1642104278762,10.231,146.67,146.61,14.02216857]
[1642104279564,10.481,146.67,146.61,13.76216857]
[1642104279762,10.2323,146.65,146.58,24.0134]
[1642104279964,2.728,146.64,146.55,23.256]
[1642104280268,8.16,146.63,146.55,23.256]
[1642104280465,2.728,146.62,146.49,116.2983]
[1642104280666,2.728,146.62,146.54,17.87443388]
[1642104280867,2.978,146.62,146.54,17.87443388]
[1642104281070,2.728,146.62,146.54,17.87443388]
[1642104281369,12.9624,146.62,146.54,17.87443388]
[1642104281767,13.2124,146.62,146.54,17.87443388]
[1642104282472,21.6324,146.62,146.54,17.87443388]
[1642104282675,21.6324,146.62,146.49,116.2983]
[1642104283072,67.66,146.61,146.49,116.2983]
[1642104283272,10.2402,146.57,146.49,116.2983]
[1642104283471,2.729,146.56,146.46,97.6819]
[1642104283671,2.729,146.56,146.49,19.07223316]
[1642104283870,2.979,146.56,146.49,19.07223316]
[1642104284270,10.2415,146.54,146.46,22.7054]
[1642104284470,82.8747,146.53,146.46,22.7054]
[1642104284671,82.8747,146.53,146.44,24.6388]
[1642104284672,91.0347,146.53,146.44,24.6388]
[1642104284872,91.5447,146.53,146.41,110.3608]
[1642104285072,91.5447,146.53,146.4,448.6822145]
[1642104285271,67.66,146.52,146.41,16.88869997]
[1642104285472,10.2474,146.46,146.41,16.88869997]
[1642104285877,10.4974,146.46,146.41,16.88869997]
[1642104286073,10.2474,146.46,146.41,16.88869997]
[1642104286274,8.16,146.49,146.41,16.88869997]
[1642104286478,8.41,146.49,146.41,16.88869997]
[1642104286674,8.16,146.49,146.41,16.88869997]
[1642104287181,2.731,146.48,146.41,16.88869997]
[1642104287576,13.4852,146.48,146.41,16.88869997]
[1642104287980,25.5242,146.48,146.38,25.33281579]
[1642104288382,8.16,146.47,146.38,25.33281579]
[1642104288580,2.731,146.46,146.38,25.33281579]
[1642104288779,10.249,146.42,146.38,23.4167]
[1642104288979,2.732,146.44,146.39,15.74712783]
[1642104289180,2.731,146.46,146.39,15.74712783]
[1642104289579,2.981,146.46,146.39,15.74712783]
[1642104289981,10.2473,146.44,146.39,15.74712783]
[1642104290406,2.731,146.43,146.39,15.74712783]
[1642104290710,10.4973,146.44,146.39,15.74712783]
[1642104290907,0.25,146.44,146.39,15.74712783]
[1642104291305,13.2274,146.46,146.39,15.74712783]
[1642104291806,13.4874,146.46,146.39,15.74712783]
[1642104292006,13.4874,146.46,146.37,1.91611579]
[1642104292211,8.16,146.45,146.37,1.91611579]
[1642104292407,10.2491,146.42,146.37,1.91611579]
[1642104292810,2.732,146.44,146.37,1.91611579]
[1642104293008,2.982,146.44,146.38,15.99726938]
[1642104293808,3.242,146.44,146.35,24.93631579]
[1642104294008,13.4899,146.44,146.35,24.93631579]
[1642104294609,13.2399,146.44,146.35,24.93631579]
[1642104294810,12.9799,146.44,146.36,17.6201399]
[1642104295108,2.732,146.44,146.36,17.6201399]
[1642104295308,10.892,146.47,146.36,20.04625569]
[1642104295812,1.51859426,146.49,146.36,20.04625569]
[1642104296210,1.51859426,146.5,146.41,24.66889709]
[1642104296408,2.731,146.49,146.41,24.66889709]
[1642104296709,2.731,146.49,146.41,24.92889709]
[1642104296909,2.731,146.49,146.42,1.91611579]
[1642104297208,2.731,146.51,146.42,1.91611579]
[1642104297408,2.731,146.51,146.42,2.17611579]
[1642104297608,2.731,146.51,146.42,12.41741579]
[1642104298510,2.731,146.51,146.43,1.91611579]
[1642104298711,21.1337,146.51,146.43,1.91611579]
[1642104298909,22.90229426,146.51,146.41,16.34281288]
[1642104299108,22.90229426,146.51,146.44,17.42143963]
[1642104299510,4.24959426,146.51,146.44,17.68143963]
[1642104299711,4.24959426,146.51,146.41,1.91611579]
[1642104299912,8.16,146.5,146.41,1.91611579]
[1642104300114,2.731,146.49,146.41,1.91611579]
[1642104300712,11.151,146.49,146.41,16.11624452]
[1642104300914,10.2449,146.48,146.41,1.91611579]
[1642104301118,10.891,146.47,146.39,1.91611579]
[1642104301614,17.401,146.47,146.39,1.91611579]
[1642104301914,17.401,146.47,146.39,19.89619349]
[1642104302316,17.401,146.47,146.39,17.9800777]
[1642104302513,10.2505,146.43,146.39,17.9800777]
[1642104302714,2.732,146.42,146.39,17.9800777]
[1642104302913,8.385,146.42,146.37,1.91611579]
[1642104303113,8.16,146.41,146.37,1.91611579]
[1642104303313,0.32441766,146.38,146.34,3.90177459]
[1642104303516,10.2576,146.36,146.34,3.90177459]
[1642104303716,10.2576,146.36,146.32,3.90177459]
[1642104303717,45.733,146.35,146.32,3.90177459]
[1642104303915,53.282,146.35,146.32,3.90177459]
[1642104304115,53.532,146.35,146.32,3.90177459]
[1642104304326,10.282,146.35,146.32,3.90177459]
[1642104304515,10.2578,146.34,146.32,3.90177459]
[1642104304913,10.5078,146.34,146.32,3.90177459]
[1642104305114,10.5078,146.34,146.31,489.61021762]
[1642104305314,2.733,146.33,146.32,16.37220362]
[1642104305727,12.9908,146.34,146.32,16.37220362]
[1642104305919,10.2578,146.34,146.32,16.37220362]
[1642104306222,2.733,146.37,146.32,16.37220362]
[1642104306426,2.733,146.37,146.25,3.91499525]
[1642104306620,0.25,146.37,146.25,3.91499525]
[1642104306821,12.54299521,146.36,146.25,4.17499525]
[1642104307022,12.79299521,146.36,146.25,4.17499525]
[1642104307220,1.64999521,146.35,146.25,3.91499525]
[1642104307422,10.894,146.34,146.26,18.06106998]
[1642104307820,17.144,146.34,146.26,18.06106998]
[1642104308222,11.144,146.34,146.26,18.06106998]
[1642104308524,10.2586,146.32,146.26,18.06106998]
[1642104308723,2.734,146.31,146.26,18.06106998]
[1642104308921,0.25,146.32,146.26,18.06106998]
[1642104309120,2.734,146.31,146.26,18.06106998]
[1642104309321,37.4469,146.33,146.22,5.74834738]
[1642104309522,67.66,146.3,146.22,5.74834738]
[1642104309721,2.734,146.29,146.22,5.74834738]
[1642104309922,3.244,146.3,146.22,5.74834738]
[1642104310120,2.734,146.28,146.22,5.74834738]
[1642104310320,2.734,146.28,146.23,16.59670853]
[1642104310523,10.2647,146.26,146.23,16.59670853]
[1642104310721,2.735,146.25,146.22,5.74834738]
[1642104310922,8.16,146.25,146.22,5.74834738]
[1642104311120,2.735,146.24,146.22,5.74834738]
[1642104311523,0.51,146.24,146.23,3.03219996]
[1642104311722,28.735,146.23,146.22,5.74834738]
[1642104312121,29.245,146.23,146.22,5.74834738]
[1642104312326,2.985,146.23,146.22,5.74834738]
[1642104312524,3.245,146.23,146.22,4.738e-05]
[1642104312726,11.405,146.23,146.11,2215.32892634]
[1642104312926,11.405,146.23,146.13,5.87627509]
[1642104313126,11.145,146.23,146.13,5.87627509]
[1642104313327,10.895,146.23,146.14,17.07340041]
[1642104313527,8.16,146.26,146.14,17.07340041]
[1642104314128,8.16,146.26,146.14,24.97339562]
[1642104314327,8.16,146.26,146.14,23.32340041]
[1642104314729,8.16,146.26,146.17,10.2578]
[1642104315027,8.16,146.26,146.18,14.30260522]
[1642104315827,8.42,146.26,146.18,18.22085258]
[1642104316029,2.735,146.25,146.18,18.22085258]
[1642104316229,2.485,146.26,146.18,18.22085258]
[1642104316437,8.16,146.29,146.18,18.47085258]
[1642104316659,8.16,146.33,146.18,18.73085258]
[1642104316859,2.734,146.32,146.18,18.73085258]
[1642104317057,2.734,146.32,146.18,20.81260522]
[1642104317458,2.734,146.32,146.18,31.07000522]
[1642104317761,8.16,146.31,146.18,10.2574]
[1642104318057,8.16,146.31,146.12,23.6562]
[1642104318058,102.26696657,146.29,146.12,23.6562]
[1642104318257,67.66,146.27,146.19,3.91621153]
[1642104318559,10.895,146.26,146.19,3.91621153]
[1642104318756,12.54499521,146.26,146.15,17.30031781]
[1642104318960,12.78410834,146.25,146.18,18.01595537]
[1642104319156,10.895,146.24,146.11,2200.0]
[1642104319356,23.37418896,146.24,146.11,2200.0]
[1642104319556,10.82919375,146.23,146.11,2200.0]
[1642104319757,10.896,146.22,146.11,2200.0]
[1642104319958,10.2666,146.2,146.11,2200.0]
[1642104320159,10.896,146.19,146.11,2200.0]
[1642104320560,13.05599521,146.19,146.11,2200.0]
[1642104320860,11.406,146.19,146.12,18.99490495]
[1642104321360,1.64999521,146.18,146.12,18.99490495]
[1642104321565,10.896,146.17,146.12,18.99490495]
[1642104321959,11.406,146.17,146.12,18.99490495]
[1642104322160,10.896,146.17,146.12,18.99490495]
[1642104322360,2.737,146.21,146.13,60.0]
[1642104322559,10.897,146.21,146.13,60.0]
[1642104322960,10.897,146.21,146.12,18.99490495]